[Event "EYCC Girls-U16 2019"]
[Site "Bratislava"]
[Date "2019.08.04"]
[Round "3.13"]
[White "Gombocz, Zsofia"]
[Black "Siekanska, Zuzanna"]
[Result "0-1"]
[ECO "B40"]
[WhiteElo "1981"]
[BlackElo "1570"]
[Annotator "NA"]
[PlyCount "120"]
[EventDate "2019.08.02"]
[EventType "swiss"]
[EventCountry "SVK"]
[SourceTitle "playchess.com"]
[Source "ChessBase"]
[SourceQuality "1"]
[TimeControl "40/5400+30:1800+30"]

1. e4 {[%emt 0:00:00]} c5 {[%emt 0:00:00]} 2. Nf3 {[%emt 0:00:00]} e6 {[%emt 0:00:00]} 3. c4 {[%emt 0:00:00]} Nc6 {[%emt 0:00:00]} 4. Nc3 {[%emt 0:00:00]} Nf6 {[%emt 0:00:22]} 5. Be2 {[%emt 0:00:11]} b6 {[%emt 0:00:53]} 6. O-O {[%emt 0:00:53]} Bb7 {[%emt 0:00:13]} 7. d4 {[%emt 0:01:19]} cxd4 {[%emt 0:00:36]} 8. Nxd4 {[%emt 0:00:07]} Qb8 {[%emt 0:00:29]} 9. Be3 {[%emt 0:07:30]} Bd6 {[%emt 0:00:44]} 10. f4 {[%emt 0:01:31]} Nxd4 {[%emt 0:00:14]} 11. Qxd4 {[%emt 0:05:01]} e5 {[%emt 0:00:28]} 12. Qd2 {[%emt 0:03:33]} O-O {[%emt 0:00:38]} 13. f5 {[%emt 0:05:37]} Bb4 {[%emt 0:02:52]} 14. Bf3 {[%emt 0:06:09]} Bxe4 {[%emt 0:03:12]} 15. a3 {[%emt 0:05:19]} Bxf3 {[%emt 0:03:44]} 16. axb4 {[%emt 0:01:49]} Bb7 {[%emt 0:01:59]} 17. Bg5 {[%emt 0:02:00]} Ne4 {[%emt 0:07:53]} 18. Nxe4 {[%emt 0:01:22]} Bxe4 {[%emt 0:00:44]} 19. f6 {[%emt 0:03:09]} Qc7 {[%emt 0:06:50]} 20. Rac1 {[%emt 0:17:10]} Rfe8 {[%emt 0:06:01]} 21. h4 {[%emt 0:09:18]} Re6 {[%emt 0:07:04]} 22. Qe2 {[%emt 0:02:39]} Bb7 {[%emt 0:06:59]} 23. Qf2 {[%emt 0:10:37]} d6 {[%emt 0:04:08]} 24. Qg3 {[%emt 0:02:54]} Qc6 {[%emt 0:05:09]} 25. Be3 {[%emt 0:04:19]} g6 {[%emt 0:01:47]} 26. Rc2 {[%emt 0:02:18]} Kf8 {[%emt 0:08:13]} 27. b3 {[%emt 0:02:09]} Ke8 {[%emt 0:01:42]} 28. Rd2 {[%emt 0:01:07]} Qe4 {[%emt 0:03:47]} 29. Bg5 {[%emt 0:01:02]} Rd8 {[%emt 0:02:38]} 30. Re1 {[%emt 0:00:28]} Qc6 {[%emt 0:01:58]} 31. h5 {[%emt 0:00:40]} Kd7 {[%emt 0:03:31]} 32. hxg6 {[%emt 0:00:43]} hxg6 {[%emt 0:00:09]} 33. Qh4 {[%emt 0:00:33]} Kc7 {[%emt 0:01:14]} 34. Qh7 {[%emt 0:01:17]} Qe8 {[%emt 0:01:10]} 35. Qh4 {[%emt 0:01:46]} Qh8 {[%emt 0:00:42]} 36. g3 {[%emt 0:01:58]} Qe8 {[%emt 0:01:34]} 37. Qh7 {[%emt 0:00:44]} Rd7 {[%emt 0:01:27]} 38. Qg7 {[%emt 0:00:42]} Qc8 {[%emt 0:01:00]} 39. b5 {[%emt 0:00:27]} Re8 {[%emt 0:00:36]} 40. Rh2 {[%emt 0:00:00]} Rg8 {[%emt 0:00:00]} 41. Qh7 {[%emt 0:04:54]} Qe8 {[%emt 0:03:15]} 42. Qh4 {[%emt 0:05:16]} Qe6 {[%emt 0:01:42]} 43. Qh3 {[%emt 0:02:15]} Qe8 {[%emt 0:03:00]} 44. Qh4 {[%emt 0:00:26]} Rd8 {[%emt 0:00:37]} 45. Qg4 {[%emt 0:02:44]} Rh8 {[%emt 0:00:57]} 46. Rh4 {[%emt 0:02:16]} Rxh4 {[%emt 0:00:40]} 47. Qxh4 {[%emt 0:00:52]} Qd7 {[%emt 0:00:46]} 48. g4 {[%emt 0:07:32]} Rh8 {[%emt 0:00:52]} 49. Qg3 {[%emt 0:01:01]} Kb8 {[%emt 0:02:22]} 50. Kf2 {[%emt 0:01:37]} Qc7 {[%emt 0:01:50]} 51. Be3 {[%emt 0:02:25]} Qd8 {[%emt 0:00:44]} 52. Bg5 {[%emt 0:00:13]} Rh7 {[%emt 0:01:16]} 53. Ke2 {[%emt 0:01:49]} Qh8 {[%emt 0:00:41]} 54. Kd1 {[%emt 0:00:54]} Rh3 {[%emt 0:00:32]} 55. Qf2 {[%emt 0:00:41]} Rxb3 {[%emt 0:00:58]} 56. Qd2 {[%emt 0:00:39]} Kc7 {[%emt 0:01:09]} 57. Kc2 {[%emt 0:00:57]} Rg3 {[%emt 0:00:48]} 58. Re2 {[%emt 0:02:18]} Qh3 {[%emt 0:01:45]} 59. Be3 {[%emt 0:00:59]} Qxg4 {[%emt 0:00:31]} 60. Kc3 {[%emt 0:00:56]} Qf4 {[%emt 0:01:58]} 0-1

[Event "EYCC Girls-U16 2019"]
[Site "Bratislava"]
[Date "2019.08.04"]
[Round "3.14"]
[White "Donghvani, Nia"]
[Black "Khachatryan, Veronika"]
[Result "0-1"]
[ECO "A34"]
[WhiteElo "1864"]
[BlackElo "1870"]
[Annotator "NA"]
[PlyCount "74"]
[EventDate "2019.08.02"]
[EventType "swiss"]
[EventCountry "SVK"]
[SourceTitle "playchess.com"]
[Source "ChessBase"]
[SourceQuality "1"]
[TimeControl "40/5400+30:1800+30"]

1. c4 {[%emt 0:00:00]} Nf6 {[%emt 0:00:00]} 2. Nc3 {[%emt 0:00:00]} c5 {[%emt 0:00:04]} 3. g3 {[%emt 0:00:00]} d5 {[%emt 0:00:12]} 4. cxd5 {[%emt 0:00:11]} Nxd5 {[%emt 0:00:04]} 5. Bg2 {[%emt 0:00:42]} Nc7 {[%emt 0:00:35]} 6. Nf3 {[%emt 0:02:54]} Nc6 {[%emt 0:00:07]} 7. d3 {[%emt 0:03:46]} e5 {[%emt 0:00:15]} 8. b3 {[%emt 0:03:09]} Be7 {[%emt 0:01:41]} 9. Bb2 {[%emt 0:02:53]} O-O {[%emt 0:02:15]} 10. O-O {[%emt 0:00:04]} Rb8 {[%emt 0:07:46]} 11. Rc1 {[%emt 0:02:46]} f6 {[%emt 0:00:57]} 12. Qd2 {[%emt 0:09:57]} Ne6 {[%emt 0:06:39]} 13. e3 {[%emt 0:07:52]} Qe8 {[%emt 0:16:20]} 14. Ne2 {[%emt 0:14:26]} Qh5 {[%emt 0:13:36]} 15. Rfd1 {[%emt 0:17:46]} Rd8 {[%emt 0:04:23]} 16. Qc3 {[%emt 0:06:45]} Nb4 {[%emt 0:05:09]} 17. Ra1 {[%emt 0:06:06]} Nf8 {[%emt 0:02:40]} 18. Kh1 {[%emt 0:05:54]} Bg4 {[%emt 0:06:08]} 19. Neg1 {[%emt 0:01:01]} Bf5 {[%emt 0:05:51]} 20. e4 {[%emt 0:10:33]} Bg4 {[%emt 0:01:02]} 21. Rd2 {[%emt 0:01:51]} Rd7 {[%emt 0:01:13]} 22. h3 {[%emt 0:00:44]} Rbd8 {[%emt 0:01:07]} 23. Nh4 {[%emt 0:01:35]} Be6 {[%emt 0:01:00]} 24. Bf3 {[%emt 0:00:26]} Qf7 {[%emt 0:01:41]} 25. Be2 {[%emt 0:00:35]} Ng6 {[%emt 0:10:19]} 26. Ng2 {[%emt 0:00:32]} b5 {[%emt 0:01:39]} 27. Ne3 {[%emt 0:00:25]} c4 {[%emt 0:00:40]} 28. bxc4 {[%emt 0:00:28]} bxc4 {[%emt 0:00:04]} 29. Nf5 {[%emt 0:00:37]} Nxd3 {[%emt 0:00:36]} 30. Nxe7+ {[%emt 0:00:17]} Nxe7 {[%emt 0:00:14]} 31. Bxd3 {[%emt 0:00:30]} Rxd3 {[%emt 0:00:23]} 32. Rxd3 {[%emt 0:00:31]} Rxd3 {[%emt 0:01:29]} 33. Qb4 {[%emt 0:00:01]} Nc6 {[%emt 0:01:23]} 34. Qa4 {[%emt 0:00:01]} Qd7 {[%emt 0:02:15]} 35. Ba3 {[%emt 0:01:17]} Nd4 {[%emt 0:01:39]} 36. Qb4 {[%emt 0:00:19]} Rxa3 {[%emt 0:01:01]} 37. Qxa3 {[%emt 0:00:28]} Nc2 0-1

[Event "EYCC Girls-U16 2019"]
[Site "Bratislava"]
[Date "2019.08.04"]
[Round "3.15"]
[White "Dubovyk, Anastasiia"]
[Black "Moerwald, Magdalena"]
[Result "1-0"]
[ECO "B10"]
[WhiteElo "1824"]
[BlackElo "1869"]
[Annotator "NA"]
[PlyCount "79"]
[EventDate "2019.08.02"]
[EventType "swiss"]
[EventCountry "SVK"]
[SourceTitle "playchess.com"]
[Source "ChessBase"]
[SourceQuality "1"]
[TimeControl "40/5400+30:1800+30"]

1. e4 {[%emt 0:00:00]} c6 {[%emt 0:00:00]} 2. Nf3 {[%emt 0:00:00]} d5 {[%emt 0:00:05]} 3. Nc3 {[%emt 0:00:00]} dxe4 {[%emt 0:03:21]} 4. Nxe4 {[%emt 0:00:00]} Nd7 {[%emt 0:04:57]} 5. Bc4 {[%emt 0:00:15]} e6 {[%emt 0:04:23]} 6. Qe2 {[%emt 0:02:10]} Ndf6 {[%emt 0:03:49]} 7. Ng3 {[%emt 0:08:19]} Nd5 {[%emt 0:03:22]} 8. d4 {[%emt 0:01:11]} Ngf6 {[%emt 0:04:58]} 9. O-O {[%emt 0:05:11]} Bd6 {[%emt 0:02:23]} 10. Ne5 {[%emt 0:05:14]} O-O {[%emt 0:02:29]} 11. a3 {[%emt 0:05:36]} Qc7 {[%emt 0:03:58]} 12. Bd3 {[%emt 0:07:42]} b5 {[%emt 0:03:56]} 13. c3 {[%emt 0:03:56]} a6 {[%emt 0:03:31]} 14. h4 {[%emt 0:01:59]} c5 {[%emt 0:05:15]} 15. h5 {[%emt 0:03:32]} Nd7 {[%emt 0:05:35]} 16. f4 {[%emt 0:08:10]} f6 {[%emt 0:08:55]} 17. Qe4 {[%emt 0:03:17]} f5 {[%emt 0:04:24]} 18. Qe2 {[%emt 0:04:11]} Nxe5 {[%emt 0:02:54]} 19. dxe5 {[%emt 0:05:44]} Be7 {[%emt 0:00:27]} 20. c4 {[%emt 0:03:42]} Nb6 {[%emt 0:03:00]} 21. Be3 {[%emt 0:01:22]} Bb7 {[%emt 0:03:20]} 22. b3 {[%emt 0:05:01]} bxc4 {[%emt 0:01:42]} 23. bxc4 {[%emt 0:00:35]} Rad8 {[%emt 0:01:27]} 24. Bc2 {[%emt 0:07:44]} Qc6 {[%emt 0:03:21]} 25. Rf2 {[%emt 0:09:51]} Bh4 {[%emt 0:03:03]} 26. Kh2 {[%emt 0:00:29]} a5 {[%emt 0:02:54]} 27. Bd3 {[%emt 0:03:49]} Rd7 {[%emt 0:01:58]} 28. Qc2 {[%emt 0:02:11]} Rfd8 {[%emt 0:02:26]} 29. Be2 {[%emt 0:01:07]} g6 {[%emt 0:01:55]} 30. Kh3 {[%emt 0:01:43]} Bxg3 {[%emt 0:01:39]} 31. Kxg3 {[%emt 0:00:07]} Rg7 {[%emt 0:02:16]} 32. h6 {[%emt 0:00:15]} Rgd7 {[%emt 0:01:42]} 33. Bf3 {[%emt 0:00:47]} Qc8 {[%emt 0:01:03]} 34. Bxb7 {[%emt 0:00:34]} Rxb7 {[%emt 0:00:25]} 35. Rb1 {[%emt 0:00:51]} Qc6 {[%emt 0:02:51]} 36. Rd2 {[%emt 0:00:31]} Rxd2 {[%emt 0:00:37]} 37. Qxd2 {[%emt 0:00:19]} Rd7 {[%emt 0:01:36]} 38. Rxb6 {[%emt 0:00:16]} Rxd2 {[%emt 0:01:01]} 39. Rxc6 {[%emt 0:00:06]} Rd3 {[%emt 0:00:09]} 40. Kf3 {[%emt 0:00:00]} 1-0

[Event "EYCC Girls-U16 2019"]
[Site "Bratislava"]
[Date "2019.08.04"]
[Round "3.16"]
[White "Lukacs, Anna Kata"]
[Black "Yedigaryan, Asya"]
[Result "0-1"]
[ECO "B10"]
[WhiteElo "1907"]
[BlackElo "1583"]
[Annotator "NA"]
[PlyCount "72"]
[EventDate "2019.08.02"]
[EventType "swiss"]
[EventCountry "SVK"]
[SourceTitle "playchess.com"]
[Source "ChessBase"]
[SourceQuality "1"]
[TimeControl "40/5400+30:1800+30"]

1. e4 {[%emt 0:00:00]} c6 {[%emt 0:00:00]} 2. c4 {[%emt 0:00:00]} d5 {[%emt 0:00:00]} 3. exd5 {[%emt 0:00:06]} cxd5 {[%emt 0:00:00]} 4. cxd5 {[%emt 0:00:14]} Nf6 {[%emt 0:00:00]} 5. Nc3 {[%emt 0:00:25]} Nxd5 {[%emt 0:00:00]} 6. Bc4 {[%emt 0:03:36]} Nb6 {[%emt 0:00:09]} 7. Bb3 {[%emt 0:00:42]} Nc6 {[%emt 0:01:13]} 8. Nf3 {[%emt 0:00:13]} e6 {[%emt 0:02:19]} 9. d4 {[%emt 0:00:34]} Be7 {[%emt 0:01:38]} 10. O-O {[%emt 0:01:36]} O-O {[%emt 0:02:57]} 11. a3 Bf6 {[%emt 0:02:17]} 12. Be3 {[%emt 0:05:45]} Ne7 {[%emt 0:11:09]} 13. Bc2 {[%emt 0:15:34]} Ng6 {[%emt 0:06:19]} 14. Ne4 {[%emt 0:04:26]} Be7 {[%emt 0:01:22]} 15. Qe2 {[%emt 0:09:50]} Bd7 {[%emt 0:03:54]} 16. Ne5 {[%emt 0:06:45]} Nd5 {[%emt 0:17:08]} 17. Qh5 {[%emt 0:06:17]} Nf6 {[%emt 0:10:34]} 18. Nxf6+ {[%emt 0:01:31]} Bxf6 {[%emt 0:00:05]} 19. f4 {[%emt 0:01:05]} Rc8 {[%emt 0:02:35]} 20. Be4 {[%emt 0:01:31]} Rc7 {[%emt 0:01:31]} 21. Rf3 {[%emt 0:01:22]} Bxe5 {[%emt 0:01:44]} 22. Rh3 {[%emt 0:08:26]} h6 {[%emt 0:00:48]} 23. fxe5 {[%emt 0:01:01]} Be8 {[%emt 0:05:11]} 24. Qg4 {[%emt 0:15:31]} f5 {[%emt 0:04:16]} 25. exf6 {[%emt 0:00:38]} Rxf6 {[%emt 0:00:15]} 26. Rd1 {[%emt 0:01:02]} Rd7 {[%emt 0:02:14]} 27. Rf3 {[%emt 0:05:39]} Ne5 {[%emt 0:03:19]} 28. dxe5 {[%emt 0:05:29]} Rxd1+ {[%emt 0:00:09]} 29. Kf2 {[%emt 0:00:07]} Rxf3+ {[%emt 0:02:15]} 30. gxf3 {[%emt 0:00:09]} Qe7 {[%emt 0:02:20]} 31. f4 {[%emt 0:01:47]} Rd8 {[%emt 0:04:04]} 32. f5 {[%emt 0:01:00]} exf5 {[%emt 0:00:11]} 33. Qxf5 {[%emt 0:00:33]} Qh4+ {[%emt 0:00:39]} 34. Kf3 {[%emt 0:01:39]} Qh5+ {[%emt 0:00:23]} 35. Kf4 {[%emt 0:00:56]} Qxh2+ {[%emt 0:01:08]} 36. Kf3 {[%emt 0:00:18]} Bh5+ {[%emt 0:00:09]} 0-1

[Event "EYCC Girls-U16 2019"]
[Site "Bratislava"]
[Date "2019.08.04"]
[Round "3.17"]
[White "Ozbek, Busra"]
[Black "Ciolacu, Alessia-Mihaela"]
[Result "1-0"]
[ECO "C77"]
[WhiteElo "1866"]
[BlackElo "2199"]
[Annotator "NA"]
[PlyCount "103"]
[EventDate "2019.08.02"]
[EventType "swiss"]
[EventCountry "SVK"]
[SourceTitle "playchess.com"]
[Source "ChessBase"]
[SourceQuality "1"]
[TimeControl "40/5400+30:1800+30"]

1. e4 {[%emt 0:00:00]} e5 {[%emt 0:00:00]} 2. Nf3 {[%emt 0:00:00]} Nc6 {[%emt 0:00:00]} 3. Bb5 {[%emt 0:00:00]} a6 {[%emt 0:01:07]} 4. Ba4 {[%emt 0:00:00]} Nf6 {[%emt 0:00:08]} 5. Bxc6 {[%emt 0:00:21]} dxc6 {[%emt 0:00:36]} 6. d3 {[%emt 0:00:18]} Bd6 {[%emt 0:04:31]} 7. Nbd2 {[%emt 0:01:40]} Be6 {[%emt 0:00:44]} 8. b3 {[%emt 0:00:47]} Nd7 {[%emt 0:01:35]} 9. Bb2 {[%emt 0:00:28]} f6 {[%emt 0:01:34]} 10. Qe2 {[%emt 0:02:59]} Qe7 {[%emt 0:10:47]} 11. a3 {[%emt 0:17:59]} Bg4 {[%emt 0:28:00]} 12. h3 {[%emt 0:04:32]} Bh5 {[%emt 0:00:25]} 13. Nf1 {[%emt 0:07:09]} Bf7 {[%emt 0:10:39]} 14. Ne3 {[%emt 0:04:17]} g6 {[%emt 0:01:31]} 15. Nd2 {[%emt 0:04:13]} Bc5 {[%emt 0:07:36]} 16. O-O {[%emt 0:12:24]} O-O-O {[%emt 0:09:22]} 17. b4 {[%emt 0:03:20]} Bd4 {[%emt 0:06:56]} 18. c3 {[%emt 0:04:56]} Bxe3 {[%emt 0:00:25]} 19. Qxe3 {[%emt 0:02:05]} c5 {[%emt 0:01:31]} 20. d4 exd4 {[%emt 0:08:15]} 21. cxd4 {[%emt 0:10:04]} cxd4 {[%emt 0:00:48]} 22. Bxd4 {[%emt 0:00:05]} Ne5 {[%emt 0:00:17]} 23. Rac1 {[%emt 0:08:35]} Rhe8 {[%emt 0:02:08]} 24. Rfd1 {[%emt 0:05:25]} Nc6 {[%emt 0:00:40]} 25. Bc5 {[%emt 0:02:50]} Qe5 {[%emt 0:00:44]} 26. a4 {[%emt 0:02:49]} Rd7 {[%emt 0:00:30]} 27. b5 {[%emt 0:00:34]} Nb8 {[%emt 0:00:23]} 28. Rc2 {[%emt 0:01:46]} Red8 {[%emt 0:00:35]} 29. f4 {[%emt 0:00:59]} Qe6 {[%emt 0:00:19]} 30. Rdc1 {[%emt 0:00:44]} Rd3 {[%emt 0:01:24]} 31. Ba7 {[%emt 0:01:22]} c6 {[%emt 0:00:13]} 32. Qe2 {[%emt 0:00:57]} Be8 {[%emt 0:00:40]} 33. Nc4 {[%emt 0:00:43]} Kc7 {[%emt 0:00:34]} 34. Bb6+ {[%emt 0:00:18]} Kc8 {[%emt 0:00:04]} 35. Bxd8 {[%emt 0:00:16]} Rxd8 {[%emt 0:00:04]} 36. Nb6+ {[%emt 0:00:38]} Kc7 {[%emt 0:00:01]} 37. Nd5+ {[%emt 0:01:05]} Kd7 {[%emt 0:00:30]} 38. bxc6+ {[%emt 0:00:16]} Nxc6 {[%emt 0:00:23]} 39. Rd2 {[%emt 0:01:16]} Kc8 {[%emt 0:00:35]} 40. Qe3 {[%emt 0:00:00]} Kb8 {[%emt 0:00:00]} 41. Re1 {[%emt 0:05:23]} Bf7 {[%emt 0:07:28]} 42. Rb2 {[%emt 0:05:19]} Rd7 {[%emt 0:01:06]} 43. Qc3 {[%emt 0:06:07]} f5 {[%emt 0:02:33]} 44. Nb6 {[%emt 0:01:07]} Rd4 {[%emt 0:00:49]} 45. e5 {[%emt 0:05:53]} Rxf4 {[%emt 0:00:41]} 46. Rd2 {[%emt 0:00:48]} Be8 {[%emt 0:06:04]} 47. a5 {[%emt 0:01:22]} Re4 {[%emt 0:03:37]} 48. Red1 {[%emt 0:03:26]} Ka7 {[%emt 0:01:20]} 49. Rd8 {[%emt 0:02:39]} Nxa5 {[%emt 0:02:29]} 50. Nc8+ {[%emt 0:00:47]} Kb8 {[%emt 0:00:36]} 51. Nd6+ {[%emt 0:00:15]} Ka7 {[%emt 0:00:08]} 52. Qc5+ {[%emt 0:00:11]} 1-0

[Event "EYCC Girls-U16 2019"]
[Site "Bratislava"]
[Date "2019.08.04"]
[Round "3.18"]
[White "Kaygisiz, Ilayda"]
[Black "Eizaguerri Floris, Maria"]
[Result "0-1"]
[ECO "C00"]
[WhiteElo "1775"]
[BlackElo "2099"]
[Annotator "NA"]
[PlyCount "102"]
[EventDate "2019.08.02"]
[EventType "swiss"]
[EventCountry "SVK"]
[SourceTitle "playchess.com"]
[Source "ChessBase"]
[SourceQuality "1"]
[TimeControl "40/5400+30:1800+30"]

1. e4 {[%emt 0:00:00]} e6 {[%emt 0:00:00]} 2. c4 {[%emt 0:00:35]} c5 {[%emt 0:03:17]} 3. Nf3 {[%emt 0:00:20]} Nc6 {[%emt 0:00:13]} 4. d4 {[%emt 0:00:04]} cxd4 {[%emt 0:00:18]} 5. Nxd4 {[%emt 0:00:02]} Nf6 {[%emt 0:00:24]} 6. Nc3 {[%emt 0:02:19]} Bb4 {[%emt 0:00:07]} 7. f3 {[%emt 0:08:09]} d5 {[%emt 0:01:51]} 8. cxd5 {[%emt 0:01:47]} exd5 {[%emt 0:00:07]} 9. Bb5 {[%emt 0:00:59]} O-O {[%emt 0:17:12]} 10. O-O {[%emt 0:20:35]} dxe4 {[%emt 0:15:03]} 11. Nxc6 {[%emt 0:06:41]} bxc6 {[%emt 0:11:33]} 12. Qxd8 {[%emt 0:00:24]} Rxd8 {[%emt 0:00:05]} 13. Bxc6 {[%emt 0:00:21]} Ba6 {[%emt 0:02:54]} 14. Bxa8 {[%emt 0:07:12]} Bc5+ {[%emt 0:15:59]} 15. Kh1 {[%emt 0:00:49]} Rxa8 {[%emt 0:00:52]} 16. Bg5 {[%emt 0:09:43]} Bxf1 {[%emt 0:02:28]} 17. Rxf1 {[%emt 0:00:16]} exf3 {[%emt 0:07:36]} 18. gxf3 {[%emt 0:05:23]} Bd4 {[%emt 0:01:48]} 19. Na4 {[%emt 0:00:48]} h6 {[%emt 0:00:59]} 20. Rd1 {[%emt 0:01:59]} Be5 {[%emt 0:01:00]} 21. Be3 {[%emt 0:01:39]} Re8 {[%emt 0:04:22]} 22. Rd3 {[%emt 0:03:37]} Rc8 {[%emt 0:01:45]} 23. f4 {[%emt 0:01:00]} Bb8 {[%emt 0:00:41]} 24. Nc3 {[%emt 0:08:43]} Ng4 {[%emt 0:01:00]} 25. Bg1 {[%emt 0:01:44]} Re8 {[%emt 0:07:00]} 26. Kg2 {[%emt 0:03:02]} Bxf4 {[%emt 0:01:16]} 27. Bxa7 {[%emt 0:00:06]} Ne5 {[%emt 0:01:26]} 28. Rd5 {[%emt 0:00:23]} Nc4 {[%emt 0:00:47]} 29. Rd4 {[%emt 0:03:18]} Ne3+ {[%emt 0:00:09]} 30. Kf3 {[%emt 0:00:06]} g5 {[%emt 0:01:21]} 31. Re4 {[%emt 0:00:42]} Rxe4 {[%emt 0:00:28]} 32. Nxe4 {[%emt 0:00:26]} Nc4 {[%emt 0:00:17]} 33. b4 {[%emt 0:01:13]} f5 {[%emt 0:00:44]} 34. Ng3 {[%emt 0:00:28]} Kh7 {[%emt 0:00:54]} 35. b5 {[%emt 0:02:00]} Kg6 {[%emt 0:00:15]} 36. a4 {[%emt 0:01:28]} h5 {[%emt 0:00:29]} 37. Bc5 {[%emt 0:01:04]} h4 {[%emt 0:00:39]} 38. Nf1 {[%emt 0:00:44]} Ne5+ {[%emt 0:00:15]} 39. Kg2 {[%emt 0:00:31]} Nd7 {[%emt 0:00:50]} 40. Bb4 {[%emt 0:00:00]} g4 {[%emt 0:00:00]} 41. a5 {[%emt 0:01:37]} Bb8 {[%emt 0:06:30]} 42. Ne3 {[%emt 0:07:32]} h3+ {[%emt 0:07:03]} 43. Kh1 {[%emt 0:03:01]} Kg5 {[%emt 0:05:46]} 44. b6 {[%emt 0:09:12]} f4 {[%emt 0:00:56]} 45. Be7+ {[%emt 0:01:50]} Kh5 {[%emt 0:01:25]} 46. Nd5 {[%emt 0:07:58]} g3 {[%emt 0:06:20]} 47. hxg3 {[%emt 0:08:22]} fxg3 {[%emt 0:00:07]} 48. Ne3 {[%emt 0:01:06]} Bf4 {[%emt 0:01:51]} 49. Nd5 g2+ {[%emt 0:01:31]} 50. Kg1 {[%emt 0:02:33]} Be5 {[%emt 0:00:13]} 51. Ne3 {[%emt 0:01:06]} Bd4 {[%emt 0:00:12]} 0-1

[Event "EYCC Girls-U16 2019"]
[Site "Bratislava"]
[Date "2019.08.04"]
[Round "3.19"]
[White "Loskutova, Viktoriya"]
[Black "Korenova, Simona"]
[Result "1-0"]
[ECO "B90"]
[WhiteElo "2019"]
[BlackElo "1764"]
[Annotator "NA"]
[PlyCount "89"]
[EventDate "2019.08.02"]
[EventType "swiss"]
[EventCountry "SVK"]
[SourceTitle "playchess.com"]
[Source "ChessBase"]
[SourceQuality "1"]
[TimeControl "40/5400+30:1800+30"]

1. e4 {[%emt 0:00:00]} c5 {[%emt 0:00:00]} 2. Nf3 {[%emt 0:00:00]} d6 {[%emt 0:00:00]} 3. d4 {[%emt 0:00:00]} cxd4 {[%emt 0:00:16]} 4. Nxd4 {[%emt 0:00:00]} Nf6 {[%emt 0:00:58]} 5. Nc3 {[%emt 0:00:03]} a6 {[%emt 0:01:35]} 6. f3 {[%emt 0:03:05]} e5 {[%emt 0:05:05]} 7. Nb3 {[%emt 0:00:10]} Be6 {[%emt 0:00:23]} 8. Be3 {[%emt 0:00:06]} Nbd7 {[%emt 0:01:03]} 9. Qd2 {[%emt 0:01:39]} Be7 {[%emt 0:00:36]} 10. O-O-O {[%emt 0:00:22]} O-O {[%emt 0:01:56]} 11. g4 {[%emt 0:03:36]} b5 {[%emt 0:03:06]} 12. Kb1 {[%emt 0:05:17]} Nb6 {[%emt 0:09:30]} 13. g5 {[%emt 0:13:51]} Ne8 {[%emt 0:08:24]} 14. Nd5 {[%emt 0:10:08]} Na4 {[%emt 0:22:54]} 15. h4 {[%emt 0:07:06]} Nc5 {[%emt 0:08:25]} 16. Na5 {[%emt 0:12:58]} Rc8 {[%emt 0:07:11]} 17. h5 {[%emt 0:01:58]} f5 {[%emt 0:09:30]} 18. Bh3 {[%emt 0:08:39]} fxe4 {[%emt 0:05:20]} 19. Bxc5 {[%emt 0:00:19]} Bxh3 {[%emt 0:00:28]} 20. Bb6 {[%emt 0:20:42]} Bxg5 {[%emt 0:08:13]} 21. Bxd8 {[%emt 0:02:23]} Bxd2 {[%emt 0:00:08]} 22. Rxd2 {[%emt 0:02:43]} Rxd8 {[%emt 0:03:00]} 23. Rxh3 {[%emt 0:00:06]} exf3 {[%emt 0:00:20]} 24. Rf2 {[%emt 0:00:38]} e4 {[%emt 0:01:04]} 25. Rh4 {[%emt 0:02:48]} Nf6 {[%emt 0:01:10]} 26. Nxf6+ {[%emt 0:00:06]} Rxf6 {[%emt 0:00:06]} 27. Rxe4 {[%emt 0:00:05]} Rdf8 {[%emt 0:01:07]} 28. Kc1 {[%emt 0:01:41]} Rh6 {[%emt 0:00:32]} 29. Kd2 {[%emt 0:01:28]} Rxh5 {[%emt 0:00:25]} 30. Ke3 {[%emt 0:00:05]} Rhf5 {[%emt 0:00:40]} 31. Nc6 {[%emt 0:00:07]} R5f7 {[%emt 0:00:50]} 32. Nd4 {[%emt 0:00:04]} h6 {[%emt 0:01:03]} 33. Rxf3 {[%emt 0:00:05]} Kh7 {[%emt 0:00:22]} 34. Re6 {[%emt 0:00:37]} Rxf3+ {[%emt 0:00:36]} 35. Nxf3 {[%emt 0:00:02]} Rd8 {[%emt 0:00:08]} 36. Kf4 {[%emt 0:00:30]} Rf8+ {[%emt 0:00:56]} 37. Kg4 {[%emt 0:00:28]} h5+ {[%emt 0:00:31]} 38. Kg3 {[%emt 0:00:04]} Rd8 {[%emt 0:00:32]} 39. Ng5+ {[%emt 0:00:40]} Kg8 {[%emt 0:00:09]} 40. Kh4 {[%emt 0:00:00]} Kf8 {[%emt 0:00:00]} 41. Kxh5 {[%emt 0:00:12]} Rc8 {[%emt 0:03:31]} 42. Kg6 {[%emt 0:00:09]} d5 {[%emt 0:00:42]} 43. Nh7+ {[%emt 0:01:16]} Kg8 {[%emt 0:00:10]} 44. Rxa6 {[%emt 0:00:08]} Rd8 {[%emt 0:00:50]} 45. Ng5 {[%emt 0:00:08]} 1-0

[Event "EYCC Girls-U16 2019"]
[Site "Bratislava"]
[Date "2019.08.04"]
[Round "3.20"]
[White "Filippova, Margarita"]
[Black "Ruzic, Pia Marie"]
[Result "1/2-1/2"]
[ECO "D27"]
[WhiteElo "2029"]
[BlackElo "1830"]
[Annotator "NA"]
[PlyCount "85"]
[EventDate "2019.08.02"]
[EventType "swiss"]
[EventCountry "SVK"]
[SourceTitle "playchess.com"]
[Source "ChessBase"]
[SourceQuality "1"]
[TimeControl "40/5400+30:1800+30"]

1. d4 {[%emt 0:00:00]} d5 {[%emt 0:00:02]} 2. Nf3 {[%emt 0:00:00]} Nf6 {[%emt 0:00:50]} 3. c4 {[%emt 0:00:00]} dxc4 {[%emt 0:01:35]} 4. e3 {[%emt 0:00:12]} e6 {[%emt 0:00:46]} 5. Bxc4 {[%emt 0:00:10]} c5 {[%emt 0:00:59]} 6. O-O {[%emt 0:00:12]} a6 {[%emt 0:00:37]} 7. Bb3 {[%emt 0:02:12]} Nc6 {[%emt 0:01:17]} 8. Nc3 {[%emt 0:00:35]} b5 {[%emt 0:02:59]} 9. a3 {[%emt 0:11:57]} Be7 {[%emt 0:03:26]} 10. d5 {[%emt 0:05:28]} exd5 {[%emt 0:04:22]} 11. Nxd5 {[%emt 0:04:40]} Nxd5 {[%emt 0:03:29]} 12. Bxd5 {[%emt 0:04:16]} Bd7 {[%emt 0:04:04]} 13. a4 {[%emt 0:05:40]} Rc8 {[%emt 0:03:35]} 14. Qe2 {[%emt 0:05:57]} Qb6 {[%emt 0:22:23]} 15. Rd1 {[%emt 0:05:26]} Rd8 {[%emt 0:00:18]} 16. axb5 {[%emt 0:01:03]} axb5 {[%emt 0:00:17]} 17. e4 {[%emt 0:03:32]} O-O {[%emt 0:08:43]} 18. Be3 {[%emt 0:06:18]} Nb4 {[%emt 0:04:04]} 19. Bb3 {[%emt 0:01:52]} Qb8 {[%emt 0:09:36]} 20. Bd5 {[%emt 0:09:35]} Nxd5 {[%emt 0:03:14]} 21. exd5 {[%emt 0:00:39]} Bg4 {[%emt 0:00:32]} 22. Ra5 {[%emt 0:01:59]} c4 {[%emt 0:00:15]} 23. h3 {[%emt 0:03:03]} Bb4 {[%emt 0:01:04]} 24. Ra6 {[%emt 0:03:38]} Bxf3 {[%emt 0:07:44]} 25. Qxf3 {[%emt 0:00:03]} Qe5 {[%emt 0:00:14]} 26. Ra2 {[%emt 0:00:38]} Rd7 {[%emt 0:01:06]} 27. Bf4 {[%emt 0:02:57]} Qf5 {[%emt 0:00:47]} 28. Ra6 {[%emt 0:03:18]} g5 {[%emt 0:01:32]} 29. Bg3 {[%emt 0:03:13]} Qxf3 {[%emt 0:00:22]} 30. gxf3 {[%emt 0:00:01]} Rfd8 {[%emt 0:01:40]} 31. d6 {[%emt 0:00:05]} c3 {[%emt 0:01:29]} 32. bxc3 {[%emt 0:00:21]} Bxc3 {[%emt 0:00:02]} 33. Rd5 {[%emt 0:00:21]} b4 {[%emt 0:01:15]} 34. Rxg5+ {[%emt 0:00:05]} Kf8 {[%emt 0:00:23]} 35. Rh5 {[%emt 0:01:10]} b3 {[%emt 0:04:15]} 36. Rb6 {[%emt 0:00:50]} b2 {[%emt 0:00:08]} 37. Be5 {[%emt 0:02:13]} Bxe5 {[%emt 0:04:37]} 38. Rxe5 {[%emt 0:00:03]} Rxd6 {[%emt 0:00:04]} 39. Rxb2 {[%emt 0:00:05]} Rg6+ {[%emt 0:00:15]} 40. Kh2 {[%emt 0:00:00]} Rd1 {[%emt 0:00:00]} 41. Rb8+ {[%emt 0:01:47]} Kg7 {[%emt 0:00:20]} 42. Ree8 {[%emt 0:01:54]} Kh6 {[%emt 0:02:13]} 43. Rg8 {[%emt 0:01:02]} 1/2-1/2